Cogmind - Beta 15 @@@ ROGUE MODE // 2025.08.03 @ 19:10:58 Player: Leif Result: Destroyed by G-47 Trooper with Particle Gun Performance ------------- Evolutions (2) 1000 Regions Visited (4) 800 Robots Destroyed (27) 135 Value Destroyed (1125) 1125 Prototype IDs (0) 0 Alien Tech Used (0) 0 Bonus (0) 0 TOTAL SCORE: 3060 Bonus ------- None Cogmind --------- Core Integrity 0/550 Matter 246/300 Energy 55/100 System Corruption 0% Temperature Warning (347) Movement Core (50) Location -8/Materials Parts ------- > --- POWER (1) -------- (None) > --- PROPULSION (4) --- (None) > --- UTILITY (3) ------ (None) > --- WEAPON (3) ------- (None) > --- INVENTORY (5) ---- Light Treads Light Treads Wheel Compact Wheel Small Storage Unit Peak State ------------ > --- POWER ------------ (None) > --- PROPULSION ------- (None) > --- UTILITY ---------- (None) > --- WEAPON ----------- Flak Gun Flak Gun Flak Gun > --- INVENTORY -------- Light Treads Light Treads Wheel Compact Wheel Small Storage Unit [Rating: 12] Favorites ----------- Power Ion Engine Engine Ion Engine Propulsion Aluminum Leg Leg Aluminum Leg Utility Small Storage Unit Storage Small Storage Unit Weapon Assault Rifle Energy Gun Particle Gun Ballistic Gun Assault Rifle Build | -11 -10 -9 -9 -8 ------- Run | Yrd Mat Mat Min Mat Slots Evolved 4 | . . 2 . 2 Power . | . . . . . Propulsion 2 | . . 2 . . Utility 1 | . . . . 1 Weapon 1 | . . . . 1 Parts Attached 19 | 6 5 2 . 6 Power 2 | 1 1 . . . Engine 2 | 1 1 . . . Core . | . . . . . Reactor . | . . . . . Propulsion 6 | 2 2 2 . . Treads . | . . . . . Leg 6 | 2 2 2 . . Wheel . | . . . . . Hover . | . . . . . Flight . | . . . . . Utility 1 | 1 . . . . Device . | . . . . . Storage 1 | 1 . . . . Processor . | . . . . . Hackware . | . . . . . Protection . | . . . . . Artifact . | . . . . . Weapon 10 | 2 2 . . 6 Energy Gun 4 | . 1 . . 3 Energy Cannon . | . . . . . Ballistic Gun 6 | 2 1 . . 3 Ballistic Cannon . | . . . . . Launcher . | . . . . . Special Weapon . | . . . . . Impact Weapon . | . . . . . Slashing Weapon . | . . . . . Piercing Weapon . | . . . . . Special Melee Weapon . | . . . . . Unidentified Prototypes . | . . . . . Parts Lost 14 | . 2 . 6 6 Power 1 | . . . 1 . Propulsion 3 | . . . 3 . Utility . | . . . . . Weapon 10 | . 2 . 2 6 Highest Loss Streak 6 | . 1 . 6 3 To Critical Strikes . | . . . . . Average Backups 4 | 3 5 4 4 5 Power . | . . . . . Propulsion 3 | 2 4 4 4 4 Utility . | . . . . 1 Weapon . | . . . . . Tool/Special . | . . . . . Unused Backups 4 | . . . . 4 Power . | . . . . . Propulsion 4 | . . . . 4 Utility . | . . . . . Weapon . | . . . . . Tool/Special . | . . . . . Average Slot Usage (%) 59 | . 84 87 47 13 Engine 7 | . 14 11 3 . Leg 23 | . 28 43 25 . Storage 8 | . 14 11 8 . Energy Gun 6 | . 3 11 5 7 Ballistic Gun 12 | . 23 11 3 6 Peak Build Rating 12 | 6 7 9 9 12 Average Rating 6 | 4 6 8 4 4 On Entrance 4 | . 6 7 9 . Naked Turns 96 | . . . 29 67 Heaviest Build 15 | 12 15 15 15 12 Greatest Support 40 | 20 20 40 40 3 Greatest Overweight (x) 3 | 3 . . . 3 Average Overweight (x) . | . . . . . Largest Inventory Capacity 8 | 8 8 8 8 5 Average Capacity 7 | 7 8 8 7 5 Most Carried 7 | 6 7 5 5 5 Average Carried 4 | 3 5 4 4 5 Final Capacity 8 | 8 8 8 5 5 Final Carried 6 | 6 6 4 5 5 Class Distribution -------------------- 88% | Mutant 11% | Gunner Dominant Class ---------------- Mutant | -10/Materials Mutant | -9/Materials Mutant | -9/Mines Mutant | -8/Materials Resources | -11 -10 -9 -9 -8 ----------- Run | Yrd Mat Mat Min Mat Matter Collected 768 | 184 328 41 . 215 Remotely . | . . . . . Salvage Created 1134 | . 475 83 . 576 Parts 63 | . 25 4 . 34 Haulers Intercepted . | . . . . . Recyclers Shooed . | . . . . . Parts Field Recycled . | . . . . . Retrieved Matter . | . . . . . Parts Self-Destructed . | . . . . . Prevented . | . . . . . Kills | -11 -10 -9 -9 -8 ------- Run | Yrd Mat Mat Min Mat Combat Hostiles Destroyed 26 | . 11 2 . 13 Guns 25 | . 11 2 . 12 Classes Destroyed 4 | . 1 1 . 2 Watcher 1 | . . . . 1 Grunt 21 | . 11 1 . 9 Duelist 1 | . . . . 1 Sentry 4 | . . 1 . 3 Best Kill Streak 9 | . 3 1 . 9 Combat Bots Only 9 | . 3 1 . 9 Max Kills in Single Turn 2 | . 1 1 . 2 Gunslinging 1 | . . . . 1 Exploded . | . . . . . Melee . | . . . . . Uniques/NPCs Destroyed . | . . . . . Combat | -11 -10 -9 -9 -8 -------- Run | Yrd Mat Mat Min Mat Hostile Shots Fired 187 | . 65 9 25 88 Missed 43 | . 20 2 6 15 Hits 144 | . 45 7 19 73 Melee 2 | . . . . 2 Projectile 142 | . 45 7 19 71 AOE 11 | . . . 11 . Critical Strikes 5 | . . . 1 4 Damage Taken 2445 | . 552 133 555 1205 Core 835 | . 121 . 157 557 Absorbed by Shields . | . . . . . Core Remaining (%) 70 | 100 51 . 60 . Volleys Fired 69 | . 35 7 . 27 Largest 3 | . 2 2 . 3 Hottest 186 | . 40 85 . 186 Shots Fired 142 | . 69 14 . 59 Gun 142 | . 69 14 . 59 Cannon . | . . . . . Launcher . | . . . . . Special . | . . . . . Kinetic 109 | . 69 7 . 33 Thermal 33 | . . 7 . 26 Explosive . | . . . . . Electromagnetic . | . . . . . Robot Hit Streak 15 | . 10 5 . 15 Robot Miss Streak 5 | . 3 1 . 5 Penetration Max . | . . . . . Secondary Targets 8 | . . . . 8 Max Gunslinging Chain 1 | . . . . 1 Shots Hit Robots 110 | . 47 10 . 53 Core Hits 86 | . 22 4 . 60 Critical Kills 1 | . 1 . . . Critical Parts Destroyed . | . . . . . Critical Strikes 3 | . 1 . . 2 Burn 2 | . . . . 2 Destroy 1 | . 1 . . . Melee Attacks . | . . . . . Impact . | . . . . . Slashing . | . . . . . Piercing . | . . . . . Sneak Attacks . | . . . . . Combat Hostiles . | . . . . . Follow-up Attacks . | . . . . . Damage Inflicted 1713 | . 651 136 . 926 Guns 1686 | . 651 136 . 899 Cannons . | . . . . . Explosions . | . . . . . Melee . | . . . . . Ramming 27 | . . . . 27 Kinetic 1286 | . 651 60 . 575 Thermal 400 | . . 76 . 324 Explosive . | . . . . . Electromagnetic . | . . . . . Impact . | . . . . . Slashing . | . . . . . Piercing . | . . . . . Highest Corruption . | . . . . . Average Corruption . | . . . . . Corruption Purged . | . . . . . Corruption Blocked . | . . . . . Overload Shots . | . . . . . Overflow Damage . | . . . . . Projectiles . | . . . . . Explosions . | . . . . . Melee . | . . . . . Knockbacks . | . . . . . Impact . | . . . . . Kinetic . | . . . . . Secondary . | . . . . . Self-Inflicted Damage 13 | . . . . 13 Shots . | . . . . . Rammed 4 | . . . . 4 Targets Rammed 4 | . . . . 4 Kicked . | . . . . . Crushed . | . . . . . Highest Temperature 545 | . 5 84 2 545 Average Temperature 124 | . 2 34 2 182 Received Heat Transfer 1140 | . 303 42 147 648 Effects 7 | . . . . 7 Energy Bleed 1 | . . . . 1 Interference 2 | . . . . 2 Matter Decay 1 | . . . . 1 Damage (minor) 1 | . . . . 1 Damage (major) 2 | . . . . 2 Siege Activations . | . . . . . Martial Activations . | . . . . . Shielding Activations . | . . . . . Robots Disrupted . | . . . . . Combat Hostiles . | . . . . . Robots Corrupted . | . . . . . Combat Hostiles . | . . . . . Parts Fried . | . . . . . Impact Corruptions . | . . . . . Robots Melted 1 | . . . . 1 Combat Hostiles 1 | . . . . 1 Parts Melted 3 | . . 1 . 2 Heat Transferred 1110 | . . 185 . 925 Parts Sabotaged . | . . . . . Parts Stolen . | . . . . . Parts Stripped . | . . . . . Power Chain Reactions . | . . . . . Alert | -11 -10 -9 -9 -8 ------- Run | Yrd Mat Mat Min Mat Maximum Alert Level 1 | . . . . 1 Low Security (%) 89 | 100 100 100 100 56 Level 1 10 | . . . . 44 Level 2 . | . . . . . Level 3 . | . . . . . Level 4 . | . . . . . Level 5 . | . . . . . High Security . | . . . . . Max Security . | . . . . . Peak Influence 268 | . 191 59 15 268 Initial 59 | . . 59 15 . Average 73 | . 107 40 2 126 Influence Increases 739 | . 291 60 . 388 Destroy 0b10 Robot/C 520 | . 220 40 . 260 Destroy 0b10 Robot/NC 5 | . . . . 5 Destroy Leader 122 | . 40 20 . 62 Destroy Structure 2 | . 1 . . 1 Lose Combat Pursuer 90 | . 30 . . 60 Influence Decreases 501 | . 150 162 39 150 Entered New Map 106 | . . 82 24 . Time Decay 315 | . 130 80 15 90 Lost Part 80 | . 20 . . 60 Squads Dispatched 3 | . 1 1 . 1 Investigation . | . . . . . Extermination . | . . . . . Reinforcement 3 | . 1 1 . 1 Assault . | . . . . . Garrison . | . . . . . Intercept . | . . . . . Searches Triggered . | . . . . . Construction Impeded . | . . . . . Haulers Reinforced . | . . . . . Active Scanning Responses . | . . . . . Cargo Convoy Interrupts . | . . . . . Stealth | -11 -10 -9 -9 -8 --------- Run | Yrd Mat Mat Min Mat Distress Signals 7 | . 3 2 . 2 Communications Jammed . | . . . . . Distress Signals . | . . . . . Times Spotted 64 | . 18 7 17 22 Peak Tracking Total 15 | . 6 5 15 8 Tactical Retreats 5 | . 1 . 1 3 Traps | -11 -10 -9 -9 -8 ------- Run | Yrd Mat Mat Min Mat Traps Triggered 1 | . . 1 . . Indirectly . | . . . . . Trap Hack Attempts . | . . . . . Triggered . | . . . . . Disarmed . | . . . . . Reprogrammed . | . . . . . Reused . | . . . . . Traps Extracted . | . . . . . Installed . | . . . . . Triggered . | . . . . . Machines | -11 -10 -9 -9 -8 ---------- Run | Yrd Mat Mat Min Mat Machines Disabled . | . . . . . Max in Single Turn . | . . . . . Machines Repaired . | . . . . . Machines Dismantled . | . . . . . Machines Sabotaged . | . . . . . Overloaded Fab Kills . | . . . . . Hacking | -11 -10 -9 -9 -8 --------- Run | Yrd Mat Mat Min Mat Machines Accessed . | . . . . . Terminals . | . . . . . Fabricators . | . . . . . Repair Stations . | . . . . . Recycling Units . | . . . . . Scanalyzers . | . . . . . Garrison Access . | . . . . . Total Hacks . | . . . . . Successful . | . . . . . Failed . | . . . . . Catastrophic . | . . . . . Database Lockouts . | . . . . . Manual . | . . . . . Terminals . | . . . . . Fabricators . | . . . . . Repair Stations . | . . . . . Recycling Units . | . . . . . Scanalyzers . | . . . . . Garrison Access . | . . . . . Terminal Hacks . | . . . . . Fabricator Hacks . | . . . . . Repair Station Hacks . | . . . . . Recycling Unit Hacks . | . . . . . Scanalyzer . | . . . . . Garrison Access Hacks . | . . . . . Unauthorized Hacks . | . . . . . Terminals . | . . . . . Fabricators . | . . . . . Repair Stations . | . . . . . Recycling Units . | . . . . . Scanalyzers . | . . . . . Garrison Access . | . . . . . Data Cores Recovered . | . . . . . Used . | . . . . . Hacking Detections . | . . . . . Full Trace Events . | . . . . . Feedback Events . | . . . . . Feedback Blocked . | . . . . . Robot Schematics Acquired . | . . . . . Robots Built . | . . . . . Authchips . | . . . . . Time . | . . . . . Total Robot Build Rating . | . . . . . Part Schematics Acquired . | . . . . . Parts Built . | . . . . . Authchips . | . . . . . Time . | . . . . . Total Part Build Rating . | . . . . . Parts Repaired . | . . . . . Time . | . . . . . Parts Recycled . | . . . . . Recycled Matter . | . . . . . Retrieved Matter . | . . . . . Retrieved Components . | . . . . . Parts Scanalyzed . | . . . . . Part Schematics Acquired . | . . . . . Parts Damaged . | . . . . . Bothacking | -11 -10 -9 -9 -8 ------------ Run | Yrd Mat Mat Min Mat Used RIF Installer . | . . . . . Robots Hacked . | . . . . . Non-combat . | . . . . . Combat . | . . . . . Robot Hacks Applied . | . . . . . Relay Couplers Released . | . . . . . Fabnet Peak Effective % . | . . . . . Robots Rewired . | . . . . . Allies Hacked . | . . . . . Hacks Repelled . | . . . . . Allies | -11 -10 -9 -9 -8 -------- Run | Yrd Mat Mat Min Mat Total Allies . | . . . . . Largest Group . | . . . . . Highest-Rated Group . | . . . . . Highest-Rated Ally . | . . . . . Total Orders . | . . . . . Ally Attacks . | . . . . . Total Damage . | . . . . . Kills . | . . . . . Allies Corrupted . | . . . . . Allies Melted . | . . . . . Intel | -11 -10 -9 -9 -8 ------- Run | Yrd Mat Mat Min Mat Active Infowar (turns) . | . . . . . Robot Analysis Total . | . . . . . Derelict Logs Recovered . | . . . . . Drone Launches . | . . . . . Drone Recoveries . | . . . . . Exploration | -11 -10 -9 -9 -8 ------------- Run | Yrd Mat Mat Min Mat Turns Passed 929 | 81 302 176 145 225 Spaces Moved 626 | 62 131 123 154 156 Core 233 | 19 . . 58 156 Treads . | . . . . . Legs 393 | 43 131 123 96 . Wheels . | . . . . . Hover . | . . . . . Flight . | . . . . . Fastest Speed 50 | 50 120 120 50 50 Average Speed 99 | 103 120 120 93 72 Slowest Speed 200 | 200 120 120 120 200 Overloaded Moves . | . . . . . Propulsion Burnouts . | . . . . . Robots Hopped . | . . . . . Potential Cave-ins . | . . . . . Cave-ins Triggered . | . . . . . Exploration Rate (%) 21 | 3 24 22 42 16 Regions Visited 4 Branch Regions 1 Pre-discovered Areas . | . . . . . Known Exits Taken . | . . . . . Unknown Exits Taken 4 | 1 1 1 1 . Scrap Searched . | . . . . . Spaces Dug . | . . . . . Terrain Destroyed . | . . . . . Melee . | . . . . . Projectile . | . . . . . AOE . | . . . . . Terrain Rammed . | . . . . . Walls Destroyed . | . . . . . Machines Disabled . | . . . . . Actions | -11 -10 -9 -9 -8 --------- Run | Yrd Mat Mat Min Mat Total 794 | 79 207 137 155 216 Wait 58 | . 29 6 . 23 Move 622 | 61 130 122 153 156 Hop . | . . . . . Pick Up 17 | 12 5 . . . Fast Attach 6 | . . . . 6 Attach 10 | 6 2 2 . . Detach 1 | . . . 1 . Swap 3 | . 3 . . . Drop 4 | . 3 . 1 . Fire 69 | . 35 7 . 27 Melee . | . . . . . Ram 4 | . . . . 4 Kick . | . . . . . Crush . | . . . . . Escape Stasis . | . . . . . Rewire . | . . . . . Trap . | . . . . . Miscellaneous . | . . . . . Route ------- -11/Scrapyard -10/Materials -9/Materials -9/Mines -8/Materials History --------- Turn | Location | Event 12 | -11/Scrapyard | Discovered new exit (range 16) 82 | -11/Scrapyard | Entered Materials 330 | -10/Materials | Discovered new exit (range 15) 333 | -10/Materials | Build established: Mutant 384 | -10/Materials | Entered another Materials area 384 | -9/Materials | Evolved 2 slots: Propulsion x2 542 | -9/Materials | Discovered new exit (range 15) 560 | -9/Materials | Entered Mines 567 | -9/Mines | Met a Derelict bent on vengeance 587 | -9/Mines | Assembled infested the area 693 | -9/Mines | Lost 6 parts (1p3n2w) 701 | -9/Mines | Discovered new exit (range 6) 705 | -9/Mines | Entered Materials 705 | -8/Materials | Evolved 2 slots: Utility x1, Weapon x1 840 | -8/Materials | Core integrity fell below 50% 870 | -8/Materials | Lost 3 parts (3w) 877 | -8/Materials | Destroyed 9 combat bots 921 | -8/Materials | Core integrity fell below 20% 930 | -8/Materials | Destroyed by G-47 Trooper with Particle Gun Last Messages --------------- 00906_ Switching to secondary target: G-47 Trooper. 00906_ G-47 Trooper destroyed. 00915_ Overheating: Matter decay (-69). 00916_ G-47 Trooper destroyed. 00916_ Switching to secondary target: G-47 Trooper. 00916_ Particle Gun destroyed. 00916_ Critical hit (Burn: +37). 00918_ Overheating: Beam Rifle damaged (-2). 00918_ Overheating: Particle Gun damaged (-21). 00919_ Overheating: System interference. 00919_ Particle Gun temporarily disabled. 00920_ Overheating: Particle Gun damaged (-1). 00921_ Overheating: System interference. 00921_ Beam Rifle temporarily disabled. 00922_ Overheating: Energy bleed (-2). 00923_ R-06 Scavenger collects Lgt. Nuclear Core. 00926_ Beam Rifle destroyed. 00927_ R-06 Scavenger collects Particle Gun. 00928_ Particle Gun destroyed. 00930_ R-06 Scavenger collects Aluminum Leg. Map ----- +----------------------------------------------------+ | ????????????????????????????????????????? ???????? | | ???????????????????#####????????????????? ###????? | | ???????????????????#! #????????????????? #????? | | ???????????????????# #????????????????# "/????? | | ???????????????????# =#????????????????# "%#????? | | ???????????????????# #???????????????? "#????? | | ???????????????????#=%!#????????????????# #????? | | ???????????????????#!!=#????????????????# #????? | | ???????????????????#!= #?????????#+#???## ##???? | | ??????????????######+#"########### ##### #???? | | ??????????????# % *% ! #???? | | ??????????????#[ =!% ^ " #???? | | ??????????????#[[ [ % ^ #???? | | ??????????????#[[ ##T#### ########+### #???? | | ??????????????#!! ####??# #??????????## ###### | | ??????????????#!! #?????# #???????????# # | | ??????????????#####?????# #???????????# # | | ????????????????????????# #???????????# + % ] | | ????????????????????????# #??########## # | | ????????????????????????# #?? # ###### | | ????????????????????????# #?? """ """ # #####? | | ????????????????????????# #?# """ """ # #? | | ????????????????????????# #?# """ """ + #? | | ????????????????????????# #?# # #? | | ????????????????????????# #?# # #####? | | ???????????????????????##@a ###= "T" # #????? | | ???????????????+########%= ## ! # #????? | | ?????????????# *%=* ############ #????? | | ???????? %gg= #??????????# #????? | | ???????? = r [ #??????????# #????? | | ????????? ! ####### #???##?????# #????? | | ?????????" ????????#######?### ###### #????? | | ?????????? ???????????????????# =! # #????? | | ???????????????????????????????# = #% #????? | | ???????????????????????????????# %+% #????? | | ???????????????????????????????#[ %# #????? | | ???????????????????????????????# # #????? | | ???????????????????????????????# """ ! # #????? | | ???????????????????????????????# "R # #????? | | ???????????????????????????????# """ # #????? | | ???????????????????????????????# !# #????? | | ???????????????????????????????#####+#### #????? | | ???????????????????????????????????# #??# #????? | | ???????????????????????????????????# #??# #????? | | ???????????????????????????????????# #??# #????? | | ???????????????????????????????????# #??# #????? | | ???????????????????????????+#####??# #??# #????? | | ??????????????????????????? ??# #??# #????? | | ??????????????????????????# """ ?# #??# #????? | | ??????????????????????????# "R" ?# #??# #????? | +----------------------------------------------------+ Best States ------------- Heat Dissipation 31 Energy Generation 10 Energy Capacity 250 Matter Stores 300 Matter Capacity 300 Sight Range 16 Terrain Scan Density 10 Evasion (%) 55 Item Schematics ----------------- None Robot Schematics ------------------ None Fabricated ------------ Nothing Repaired ---------- Nothing Alien Tech Used ----------------- None Achievements -------------- None Challenges ------------ None Game ------ Seed ReflectiveHeartAutobeam Manual? 0 Play Time 00:10:07 Cumulative 57.8 hours Start 2025.08.03 @ 19:02:51 End 2025.08.03 @ 19:10:58 Sessions 1 Manual Loads 0 Difficulty Rogue Special Mode None Game No. 143 Rogue 143 Adventurer 0 Explorer 0 Win Type - Total 1 Types 1/0/0/0/0/0/0/0/0/0 Lore% 22 Gallery% 39 Achievement% 35 Wizard Run 0 Options --------- Layout 0 ASCII 0 Keyboard 0 Movement Mouse Keybinds 0 Fullscreen 2 Font 18/SmallcapsGlow Map View 76x50 Zoom Use 0% Tactical HUD 1 Map Filters NONE Filters NONE Steam 1 RUN: dc422ee9-ca1c-4d37-9af4-58190f3c70b5